[Event "4th Paytakht Cup 2019"]
[Site "Tehran"]
[Date "2019.11.04"]
[Round "6.6"]
[White "Hosseinipour, Mehdi"]
[Black "Tahbaz, Arash"]
[Result "0-1"]
[ECO "B84"]
[WhiteElo "2276"]
[BlackElo "2476"]
[Annotator "ChessBase"]
[PlyCount "106"]
[EventDate "2019.10.30"]
[EventType "swiss"]
[EventCountry "IRI"]
[SourceTitle "playchess.com"]
[Source "ChessBase"]
[SourceQuality "1"]
[TimeControl "5400+30"]

1. e4 {[%emt 0:00:00]} c5 {[%emt 0:06:24]} 2. Nf3 {[%emt 0:00:00]} d6 {[%emt 0:00:28]} 3. d4 {[%emt 0:00:00]} cxd4 {[%emt 0:00:06]} 4. Nxd4 {[%emt 0:00:00]} Nf6 {[%emt 0:00:06]} 5. Nc3 {[%emt 0:00:11]} a6 {[%emt 0:00:15]} 6. Be2 {[%emt 0:03:03]} e6 {[%emt 0:02:47]} 7. O-O {[%emt 0:00:09]} Nc6 {[%emt 0:00:44]} 8. Be3 {[%emt 0:00:12]} Be7 {[%emt 0:00:08]} 9. a4 {[%emt 0:00:11]} O-O {[%emt 0:00:06]} 10. f4 {[%emt 0:00:33]} Bd7 {[%emt 0:00:05]} 11. Nb3 {[%emt 0:01:29]} b6 {[%emt 0:01:16]} 12. Bf3 {[%emt 0:02:36]} Qc7 {[%emt 0:00:10]} 13. g4 {[%emt 0:02:56]} Bc8 {[%emt 0:00:26]} 14. g5 {[%emt 0:00:21]} Nd7 {[%emt 0:00:07]} 15. Bg2 {[%emt 0:00:08]} Re8 {[%emt 0:02:10]} 16. Rf3 {[%emt 0:07:15]} Bf8 {[%emt 0:00:40]} 17. Rh3 {[%emt 0:00:38]} g6 {[%emt 0:00:22]} 18. Qe1 {[%emt 0:07:32]} Bg7 {[%emt 0:00:18]} 19. Qh4 {[%emt 0:07:30]} Nf8 {[%emt 0:00:53]} 20. f5 {[%emt 0:11:40]} Bxc3 {[%emt 0:13:19]} 21. f6 {[%emt 0:04:00]} h5 {[%emt 0:00:31]} 22. gxh6 {[%emt 0:03:17]} Kh7 {[%emt 0:01:08]} 23. bxc3 {[%emt 0:00:18]} Ne5 {[%emt 0:01:01]} 24. Bf2 {[%emt 0:03:36]} Bb7 {[%emt 0:02:40]} 25. Qf4 {[%emt 0:01:07]} Nfd7 {[%emt 0:01:46]} 26. Rg3 {[%emt 0:05:15]} Qd8 {[%emt 0:05:05]} 27. Rf1 {[%emt 0:03:59]} Qxf6 {[%emt 0:05:11]} 28. Qd2 {[%emt 0:02:07]} Qe7 {[%emt 0:00:52]} 29. Rd1 {[%emt 0:03:17]} Nf6 {[%emt 0:02:02]} 30. Qd4 {[%emt 0:05:45]} Rac8 {[%emt 0:04:48]} 31. Nd2 {[%emt 0:00:52]} Nh5 {[%emt 0:01:21]} 32. Re3 {[%emt 0:01:28]} Ng4 {[%emt 0:06:20]} 33. Rf3 {[%emt 0:02:07]} Ne5 {[%emt 0:02:33]} 34. Re3 {[%emt 0:00:07]} Ng4 {[%emt 0:01:18]} 35. Rf3 {[%emt 0:00:06]} e5 {[%emt 0:00:06]} 36. Qxb6 {[%emt 0:01:12]} Nf4 {[%emt 0:01:11]} 37. Bg3 {[%emt 0:05:03]} Nxg2 {[%emt 0:01:51]} 38. Kxg2 {[%emt 0:00:06]} f5 {[%emt 0:00:09]} 39. Rdf1 {[%emt 0:04:46]} f4 {[%emt 0:14:30]} 40. Kg1 {[%emt 0:02:29]} Nxh6 {[%emt 0:02:53]} 41. Bf2 {[%emt 0:03:29]} Nf7 {[%emt 0:04:48]} 42. h4 {[%emt 0:01:15]} Qd7 {[%emt 0:10:06]} 43. Rd3 {[%emt 0:02:04]} Rb8 {[%emt 0:03:23]} 44. Kh2 {[%emt 0:02:00]} g5 {[%emt 0:00:51]} 45. Qa7 {[%emt 0:03:00]} Ra8 {[%emt 0:01:23]} 46. Qb6 {[%emt 0:00:13]} g4 {[%emt 0:00:05]} 47. Kg2 {[%emt 0:01:16]} Rg8 {[%emt 0:01:25]} 48. Bg1 {[%emt 0:00:37]} g3 {[%emt 0:00:31]} 49. Rd1 {[%emt 0:01:47]} Bc8 {[%emt 0:01:01]} 50. Kf1 {[%emt 0:00:02]} Qh3+ {[%emt 0:00:11]} 51. Ke1 {[%emt 0:00:02]} Bg4 {[%emt 0:00:42]} 52. Nf3 {[%emt 0:00:40]} Qg2 {[%emt 0:02:07]} 53. Qb7 {[%emt 0:01:28]} Raf8 {[%emt 0:00:46]} 0-1

[Event "4th Paytakht Cup 2019"]
[Site "Tehran"]
[Date "2019.11.04"]
[Round "6.7"]
[White "Pour Agha Bala, Amirreza"]
[Black "Darini, Pouria"]
[Result "1/2-1/2"]
[ECO "B31"]
[WhiteElo "2420"]
[BlackElo "2427"]
[Annotator "RC"]
[PlyCount "170"]
[EventDate "2019.10.30"]
[EventType "swiss"]
[EventCountry "IRI"]
[SourceTitle "playchess.com"]
[Source "ChessBase"]
[SourceQuality "1"]
[TimeControl "5400+30"]

1. e4 {[%emt 0:00:00]} c5 {[%emt 0:02:26]} 2. Nf3 {[%emt 0:00:00]} Nc6 {[%emt 0:00:02]} 3. Bb5 {[%emt 0:00:07]} g6 {[%emt 0:00:08]} 4. Bxc6 {[%emt 0:00:18]} dxc6 {[%emt 0:00:28]} 5. d3 {[%emt 0:00:12]} Bg7 {[%emt 0:00:12]} 6. O-O {[%emt 0:00:21]} Nf6 {[%emt 0:02:34]} 7. Re1 {[%emt 0:00:17]} Bg4 {[%emt 0:11:46]} 8. Nbd2 {[%emt 0:03:35]} Nd7 {[%emt 0:01:10]} 9. h3 {[%emt 0:00:37]} Bxf3 {[%emt 0:00:05]} 10. Qxf3 {[%emt 0:00:06]} O-O {[%emt 0:04:02]} 11. Qg3 {[%emt 0:01:00]} e5 {[%emt 0:13:25]} 12. Nc4 {[%emt 0:03:05]} b5 {[%emt 0:00:00]} 13. Nd2 {[%emt 0:00:27]} Nb6 {[%emt 0:19:30]} 14. Qe3 {[%emt 0:10:48]} Qd6 {[%emt 0:03:53]} 15. Qe2 {[%emt 0:02:45]} a5 {[%emt 0:05:10]} 16. Nf3 {[%emt 0:02:35]} a4 {[%emt 0:01:26]} 17. Be3 {[%emt 0:01:12]} f5 {[%emt 0:03:28]} 18. exf5 {[%emt 0:00:30]} gxf5 {[%emt 0:00:01]} 19. Rad1 {[%emt 0:03:39]} Rae8 {[%emt 0:00:07]} 20. c4 {[%emt 0:15:11]} b4 {[%emt 0:06:23]} 21. Qc2 {[%emt 0:02:07]} Kh8 {[%emt 0:09:48]} 22. Re2 {[%emt 0:03:43]} Nd7 {[%emt 0:08:54]} 23. Qxa4 {[%emt 0:00:36]} Ra8 {[%emt 0:00:58]} 24. Qb3 {[%emt 0:00:12]} Qg6 {[%emt 0:00:01]} 25. a3 {[%emt 0:06:05]} Rg8 {[%emt 0:00:35]} 26. Kh1 {[%emt 0:01:45]} Bf6 {[%emt 0:03:08]} 27. Rg1 {[%emt 0:00:06]} bxa3 {[%emt 0:01:57]} 28. bxa3 {[%emt 0:00:26]} Rgb8 {[%emt 0:00:01]} 29. Qc2 {[%emt 0:01:03]} Rxa3 {[%emt 0:00:14]} 30. Bc1 {[%emt 0:00:07]} Rab3 {[%emt 0:00:45]} 31. Nh2 {[%emt 0:02:53]} f4 {[%emt 0:01:42]} 32. Re4 {[%emt 0:00:27]} R3b7 {[%emt 0:01:06]} 33. Ng4 {[%emt 0:03:38]} Bg7 {[%emt 0:00:07]} 34. Rge1 {[%emt 0:00:17]} Qd6 {[%emt 0:00:55]} 35. R4e2 {[%emt 0:05:24]} Rb3 {[%emt 0:00:29]} 36. Rd1 {[%emt 0:00:58]} Kg8 {[%emt 0:00:32]} 37. f3 {[%emt 0:00:08]} Nf8 {[%emt 0:00:13]} 38. Qa2 {[%emt 0:01:55]} Rxd3 {[%emt 0:00:34]} 39. Rxd3 {[%emt 0:00:40]} Qxd3 {[%emt 0:00:01]} 40. Kh2 {[%emt 0:00:09]} Ng6 {[%emt 0:00:53]} 41. Rd2 {[%emt 0:00:41]} Qb1 {[%emt 0:00:45]} 42. Qa7 {[%emt 0:00:13]} Rb7 {[%emt 0:00:33]} 43. Rd8+ {[%emt 0:00:13]} Nf8 {[%emt 0:00:01]} 44. Qa8 {[%emt 0:00:38]} Rf7 {[%emt 0:00:36]} 45. Ba3 {[%emt 0:00:10]} Qe1 {[%emt 0:00:54]} 46. Bxc5 {[%emt 0:01:09]} Qg3+ {[%emt 0:00:01]} 47. Kh1 {[%emt 0:00:01]} Qe1+ {[%emt 0:00:05]} 48. Bg1 {[%emt 0:00:22]} e4 {[%emt 0:00:58]} 49. Qxc6 {[%emt 0:00:05]} e3 {[%emt 0:00:33]} 50. Nh6+ {[%emt 0:00:27]} Bxh6 {[%emt 0:00:04]} 51. Qxh6 {[%emt 0:00:04]} Qg3 {[%emt 0:00:32]} 52. Re8 {[%emt 0:00:54]} Qg6 {[%emt 0:01:09]} 53. Qxg6+ {[%emt 0:00:29]} hxg6 {[%emt 0:00:01]} 54. g3 {[%emt 0:00:12]} g5 {[%emt 0:00:46]} 55. Kg2 {[%emt 0:01:02]} Kh7 {[%emt 0:00:18]} 56. h4 {[%emt 0:00:18]} gxh4 {[%emt 0:00:55]} 57. gxf4 {[%emt 0:00:06]} Ng6 {[%emt 0:00:38]} 58. Bxe3 {[%emt 0:00:06]} Ne7 {[%emt 0:00:30]} 59. Kh3 {[%emt 0:00:11]} Nf5 {[%emt 0:00:00]} 60. Bf2 {[%emt 0:00:35]} Nd6 {[%emt 0:00:07]} 61. Re6 {[%emt 0:00:33]} Nxc4 {[%emt 0:00:01]} 62. Kg4 {[%emt 0:00:19]} h3 {[%emt 0:00:51]} 63. Bg3 {[%emt 0:00:04]} Nd2 {[%emt 0:01:25]} 64. Re5 {[%emt 0:00:59]} Nf1 {[%emt 0:00:36]} 65. Kxh3 {[%emt 0:00:59]} Nxg3 {[%emt 0:00:10]} 66. Kxg3 {[%emt 0:00:01]} Kg6 {[%emt 0:00:28]} 67. Kg4 {[%emt 0:00:05]} Ra7 {[%emt 0:00:13]} 68. Re6+ {[%emt 0:00:06]} Kf7 {[%emt 0:00:05]} 69. Rb6 {[%emt 0:00:01]} Ra5 {[%emt 0:00:20]} 70. Rb4 {[%emt 0:00:19]} Kf6 {[%emt 0:00:24]} 71. Re4 {[%emt 0:00:07]} Rb5 {[%emt 0:00:43]} 72. Ra4 {[%emt 0:00:12]} Rc5 {[%emt 0:00:12]} 73. Ra6+ {[%emt 0:00:08]} Kf7 {[%emt 0:00:05]} 74. f5 {[%emt 0:00:04]} Rc1 {[%emt 0:00:09]} 75. Kf4 {[%emt 0:00:36]} Rb1 {[%emt 0:00:16]} 76. Kg4 {[%emt 0:00:41]} Rg1+ {[%emt 0:00:07]} 77. Kf4 {[%emt 0:00:06]} Rb1 {[%emt 0:00:02]} 78. f6 {[%emt 0:00:31]} Rb4+ {[%emt 0:01:01]} 79. Kg3 {[%emt 0:00:08]} Kg6 {[%emt 0:00:58]} 80. f4 {[%emt 0:00:11]} Rb1 {[%emt 0:00:30]} 81. Kf3 {[%emt 0:00:28]} Rf1+ {[%emt 0:01:01]} 82. Ke4 {[%emt 0:00:06]} Re1+ {[%emt 0:00:04]} 83. Kd5 {[%emt 0:00:02]} Kf7 {[%emt 0:00:13]} 84. Rd6 {[%emt 0:00:11]} Rd1+ {[%emt 0:00:06]} 85. Kc6 {[%emt 0:00:04]} Rxd6+ {[%emt 0:00:02]} 1/2-1/2